fUSD/lending_fUSD_20250521
["ID","MTS","AMOUNT","RATE_DAILY","PERIOD"]
[361802840,1747816253456,-1241.64,0.00035616,5]
[361802841,1747816253467,-420.0,0.00035616,5]
[361802842,1747816253480,-420.0,0.00035616,5]
[361802843,1747816253492,-420.0,0.00035616,5]
[361802844,1747816253505,-381.89653009,0.00035616,5]
[361802845,1747816253517,-360.0,0.00035616,5]
[361802846,1747816253530,-420.0,0.00035616,5]
[361802847,1747816253542,-420.0,0.00035616,5]
[361802848,1747816253553,-420.0,0.00035616,5]
[361802849,1747816253566,-793.02,0.00035616,5]
[361802850,1747816253578,-420.0,0.00035616,5]
[361802851,1747816253589,-813.61,0.00035616,5]
[361802852,1747816253602,-527.9,0.00035616,5]
[361802853,1747816253615,-420.0,0.00035616,5]
[361802854,1747816253627,-420.0,0.00035616,5]
[361802855,1747816253639,-224.16740319,0.00035616,5]
[361802856,1747816253651,-420.0,0.00035616,5]
[361802857,1747816253663,-471.41,0.00035616,5]
[361802858,1747816253675,-420.0,0.00035616,5]
[361802859,1747816253688,-492.01,0.00035616,5]
[361802860,1747816253700,-420.0,0.00035616,5]
[361802861,1747816253712,-1132.44,0.00035616,5]
[361802862,1747816253724,-420.0,0.00035616,5]
[361802863,1747816253736,-420.0,0.00035616,5]
[361802864,1747816253748,-924.33,0.00035616,5]
[361802865,1747816253761,-420.0,0.00035616,5]
[361802866,1747816253773,-420.0,0.00035616,5]
[361802867,1747816253785,-152.585658,0.00035616,7]
[361802868,1747816253797,-420.0,0.00035616,5]
[361802869,1747816253808,-420.0,0.00035616,5]
[361802870,1747816253820,-461.9,0.00035616,5]
[361802871,1747816253832,-420.0,0.00035616,5]
[361802872,1747816253845,-1258.63,0.00035616,5]
[361802873,1747816253857,-420.0,0.00035616,5]
[361802874,1747816253873,-420.0,0.00035616,5]
[361802875,1747816253884,-507.28,0.00035616,5]
[361802876,1747816253896,-420.0,0.00035616,5]
[361802877,1747816253907,-420.0,0.00035616,5]
[361802878,1747816253919,-1809.18,0.00035616,5]
[361802879,1747816253931,-423.74,0.00035616,5]
[361802880,1747816253945,-1322.68,0.00035616,5]
[361802881,1747816253957,-1322.68,0.00035616,5]
[361802882,1747816253968,-1322.68,0.00035616,5]
[361802883,1747816253980,-420.0,0.00035616,5]
[361802884,1747816253992,-1322.68,0.00035616,5]
[361802885,1747816254003,-1322.68,0.00035616,5]
[361802886,1747816254016,-420.0,0.00035616,5]
[361802887,1747816254027,-401.1532711,0.00035616,5]
[361802888,1747816254039,-1322.68,0.00035616,5]
[361802889,1747816254051,-420.0,0.00035616,5]
[361802890,1747816254063,-1322.68,0.00035616,5]
[361802891,1747816254075,-1322.68,0.00035616,5]
[361802892,1747816254087,-1322.68,0.00035616,5]
[361802893,1747816254100,-1322.68,0.00035616,5]
[361802894,1747816254113,-661.69,0.00035616,5]
[361802895,1747816254125,-420.0,0.00035616,5]
[361802896,1747816254137,-400.0,0.00035616,5]
[361802897,1747816254150,-420.0,0.00035616,5]
[361802898,1747816254162,-501.6231979,0.00035616,5]
[361802899,1747816254174,-151.0,0.00035616,7]
[361802900,1747816254187,-420.0,0.00035616,5]
[361802901,1747816254200,-151.785424,0.00035616,7]
[361802902,1747816254212,-420.0,0.00035616,5]
[361802903,1747816254224,-420.0,0.00035616,5]
[361802904,1747816254235,-602.25,0.00035616,5]
[361802905,1747816254247,-1217.28,0.00035616,5]
[361802906,1747816254258,-420.0,0.00035616,5]
[361802907,1747816254270,-600.93,0.00035616,5]
[361802908,1747816255247,-420.0,0.00035616,5]
[361802909,1747816255294,-420.0,0.00035616,5]
[361802910,1747816255317,-420.0,0.00035616,5]
[361802911,1747816255348,-420.0,0.00035616,5]
[361802912,1747816255393,-541.78,0.00035616,5]
[361802913,1747816255422,-420.0,0.00035616,5]
[361802914,1747816255432,-5000.0,0.00035616,5]
[361802915,1747816255442,-420.0,0.00035616,5]
[361802916,1747816255451,-420.0,0.00035616,5]
[361802917,1747816255462,-699.76,0.00035616,5]
[361802918,1747816255472,-420.0,0.00035616,5]
[361802919,1747816255488,-741.02,0.00035616,5]
[361802920,1747816255498,-803.24,0.00035616,5]
[361802921,1747816255508,-420.0,0.00035616,5]
[361802922,1747816255519,-420.0,0.00035616,5]
[361802923,1747816255530,-420.0,0.00035616,5]
[361802924,1747816255540,-1253.67,0.00035616,5]
[361802925,1747816255549,-420.0,0.00035616,5]
[361802926,1747816255559,-1204.42,0.00035616,5]
[361802927,1747816255569,-420.0,0.00035616,5]
[361802928,1747816255580,-420.0,0.00035616,5]
[361802929,1747816255590,-529.81485947,0.00035616,5]
[361802930,1747816255604,-1544.12,0.00035616,5]
[361802931,1747816255614,-3112.59,0.00035616,5]
[361802932,1747816255624,-445.91,0.00035616,5]
[361802933,1747816255634,-420.0,0.00035616,5]
[361802934,1747816255644,-420.0,0.00035616,5]
[361802935,1747816255654,-777.07,0.00035616,5]
[361802936,1747816255664,-400.0,0.00035616,5]
[361802937,1747816255674,-883.75,0.00035616,5]
[361802938,1747816255684,-420.0,0.00035616,5]
[361802939,1747816255694,-488.17,0.00035616,5]
[361802940,1747816255704,-400.35424043,0.00035616,5]
[361802941,1747816255714,-713.9,0.00035616,5]
[361802942,1747816255724,-420.0,0.00035616,5]
[361802943,1747816255734,-546.49,0.00035616,5]
[361802944,1747816255744,-420.0,0.00035616,5]
[361802945,1747816255754,-420.0,0.00035616,5]
[361802946,1747816255764,-420.0,0.00035616,5]
[361802947,1747816255774,-420.0,0.00035616,5]
[361802948,1747816255783,-1394.9,0.00035616,5]
[361802949,1747816255793,-1394.9,0.00035616,5]
[361802950,1747816255803,-1394.9,0.00035616,5]
[361802951,1747816255812,-420.0,0.00035616,5]
[361802952,1747816255822,-1394.9,0.00035616,5]
[361802953,1747816255833,-1394.9,0.00035616,5]
[361802954,1747816255845,-1394.9,0.00035616,5]
[361802955,1747816255855,-1394.9,0.00035616,5]
[361802956,1747816255868,-448.43,0.00035616,5]
[361802957,1747816255879,-671.38,0.00035616,5]
[361802958,1747816255889,-1394.9,0.00035616,5]
[361802959,1747816255899,-1394.9,0.00035616,5]
[361802960,1747816255911,-1394.9,0.00035616,5]
[361802961,1747816255933,-1394.9,0.00035616,5]
[361802962,1747816255947,-1394.9,0.00035616,5]
[361802963,1747816255958,-28.08818515,0.00035616,5]
[361802964,1747816256924,-858.83181485,0.00035616,5]
[361802965,1747816256936,-420.0,0.00035616,5]
[361802966,1747816256953,-165.411059,0.00035616,5]
[361802967,1747816256963,-420.0,0.00035616,5]
[361802968,1747816256973,-420.0,0.00035616,5]
[361802969,1747816256985,-744.3,0.00035616,5]
[361802970,1747816256996,-596.09,0.00035616,5]
[361802971,1747816257006,-420.0,0.00035616,5]
[361802972,1747816257017,-1140.93,0.00035616,5]
[361802973,1747816257029,-1638.18,0.00035616,5]
[361802974,1747816257039,-1002.48,0.00035616,5]
[361802975,1747816257049,-2340.11,0.00035616,5]
[361802976,1747816257060,-420.0,0.00035616,5]
[361802977,1747816257071,-1128.93,0.00035616,5]
[361802978,1747816257081,-420.0,0.00035616,5]
[361802979,1747816257092,-420.54,0.00035616,5]
[361802980,1747816257103,-420.0,0.00035616,5]
[361802981,1747816257114,-835.46,0.00035616,5]
[361802982,1747816257125,-995.92,0.00035616,5]
[361802983,1747816257135,-420.0,0.00035616,5]
[361802984,1747816257146,-420.0,0.00035616,5]
[361802985,1747816257156,-420.0,0.00035616,5]
[361802986,1747816257167,-893.96,0.00035616,5]
[361802987,1747816257177,-420.0,0.00035616,5]
[361802988,1747816257188,-420.0,0.00035616,5]
[361802989,1747816257198,-318.70919778,0.00035616,5]
[361802990,1747816257209,-420.0,0.00035616,5]
[361802991,1747816257220,-752.65,0.00035616,5]
[361802992,1747816257231,-420.0,0.00035616,5]
[361802993,1747816257241,-420.0,0.00035616,5]
[361802994,1747816257251,-1015.6,0.00035616,5]
[361802995,1747816257262,-520.12,0.00035616,5]
[361802996,1747816257273,-473.14855659,0.00035616,5]
[361802997,1747816257284,-658.99,0.00035616,5]
[361802998,1747816257294,-581.53,0.00035616,5]
[361802999,1747816257305,-420.0,0.00035616,5]
[361803000,1747816257316,-420.0,0.00035616,5]
[361803001,1747816257326,-786.12,0.00035616,5]
[361803002,1747816257336,-420.0,0.00035616,5]
[361803003,1747816257347,-420.0,0.00035616,5]
[361803004,1747816257356,-420.0,0.00035616,5]
[361803005,1747816257367,-552.09,0.00035616,5]
[361803006,1747816257377,-420.0,0.00035616,5]
[361803007,1747816257399,-859.92,0.00035616,5]
[361803008,1747816257411,-420.0,0.00035616,5]
[361803009,1747816257421,-1033.43,0.00035616,5]
[361803010,1747816257432,-420.0,0.00035616,5]
[361803011,1747816257443,-580.12,0.00035616,5]
[361803012,1747816257453,-748.698296,0.00035616,5]
[361803013,1747816257492,-176.67471866,0.00022883,2]
[361803014,1747816257503,-1758.251704,0.00035616,5]
[361803015,1747816257514,-420.0,0.00035616,5]
[361803016,1747816257524,-490.39,0.00035616,5]
[361803017,1747816257535,-254.51418922,0.00035616,5]
[361803018,1747816257546,-405.04639189,0.00035616,5]
[361803019,1747816257556,-453.02,0.00035616,5]
[361803020,1747816257567,-420.0,0.00035616,5]
[361803021,1747816257579,-420.0,0.00035616,5]
[361803022,1747816257590,-420.0,0.00035616,5]
[361803023,1747816257602,-1001.1,0.00035616,5]
[361803024,1747816257612,-420.0,0.00035616,5]
[361803025,1747816257623,-1895.25,0.00035616,5]
[361803026,1747816257634,-688.68,0.00035616,5]
[361803027,1747816257644,-152.380896,0.00035616,7]
[361803028,1747816257655,-420.0,0.00035616,5]
[361803029,1747816257666,-420.0,0.00035616,5]
[361803030,1747816257677,-420.0,0.00035616,5]
[361803031,1747816257687,-437.49,0.00035616,5]
[361803032,1747816257698,-420.0,0.00035616,5]
[361803033,1747816257708,-420.0,0.00035616,5]
[361803034,1747816257719,-420.0,0.00035616,5]
[361803035,1747816257730,-420.0,0.00035616,5]
[361803036,1747816257740,-420.0,0.00035616,5]
[361803037,1747816257750,-420.0,0.00035616,5]
[361803038,1747816257761,-420.0,0.00035616,5]
[361803039,1747816257772,-1000.0,0.00035616,5]
[361803040,1747816257782,-575.7,0.00035616,5]
[361803041,1747816257793,-420.0,0.00035616,5]
[361803042,1747816257804,-420.0,0.00035616,5]
[361803043,1747816258052,-537.81,0.00035616,5]
[361803044,1747816258063,-437.16265509,0.00035616,5]
[361803045,1747816258073,-366.85028246,0.00035616,5]
[361803046,1747816258083,-420.0,0.00035616,5]
[361803047,1747816258093,-479.43,0.00035616,5]
[361803048,1747816258104,-420.0,0.00035616,5]
[361803049,1747816258114,-420.0,0.00035616,5]
[361803050,1747816258124,-420.0,0.00035616,5]
[361803051,1747816258134,-478.01,0.00035616,5]
[361803052,1747816258143,-420.0,0.00035616,5]
[361803053,1747816258153,-511.66,0.00035616,5]
[361803054,1747816258163,-442.66,0.00035616,5]
[361803055,1747816258172,-1142.11,0.00035616,5]
[361803056,1747816258181,-420.0,0.00035616,5]
[361803057,1747816258191,-2023.41,0.00035616,5]
[361803058,1747816258201,-420.0,0.00035616,5]
[361803059,1747816258211,-759.32,0.00035616,5]
[361803060,1747816258220,-420.0,0.00035616,5]
[361803061,1747816258229,-420.0,0.00035616,5]
[361803062,1747816258239,-420.0,0.00035616,5]
[361803063,1747816258249,-1733.63,0.00035616,5]
[361803064,1747816258259,-420.0,0.00035616,5]
[361803065,1747816258268,-380.0,0.00035616,5]
[361803066,1747816258278,-1220.1,0.00035616,5]
[361803067,1747816258288,-933.1,0.00035616,5]
[361803068,1747816258298,-247.454073,0.00035616,5]
[361803069,1747816258307,-420.0,0.00035616,5]
[361803070,1747816258316,-420.0,0.00035616,5]
[361803071,1747816258326,-2147.27,0.00035616,5]
[361803072,1747816258336,-420.0,0.00035616,5]
[361803073,1747816258346,-819.31,0.00035616,5]
[361803074,1747816258356,-500.0,0.00035616,5]
[361803075,1747816258366,-1249.21,0.00035616,5]
[361803076,1747816258375,-500.0,0.00035616,5]
[361803077,1747816258385,-457.1034435,0.00035616,5]
[361803078,1747816258395,-420.0,0.00035616,5]
[361803079,1747816258405,-420.0,0.00035616,5]
[361803080,1747816258414,-420.0,0.00035616,5]
[361803081,1747816258423,-382.20349836,0.00035616,5]
[361803082,1747816258434,-420.0,0.00035616,5]
[361803083,1747816258443,-370.3483187,0.00035616,5]
[361803084,1747816258453,-535.05,0.00035616,5]
[361803085,1747816258462,-469.53,0.00035616,5]
[361803086,1747816258472,-420.0,0.00035616,5]
[361803087,1747816258481,-692.96,0.00035616,5]
[361803088,1747816258491,-400.11782589,0.00035616,5]
[361803089,1747816258501,-420.0,0.00035616,5]
[361803090,1747816258512,-420.0,0.00035616,5]
[361803091,1747816258523,-420.0,0.00035616,5]
[361803092,1747816258533,-420.0,0.00035616,5]
[361803093,1747816258542,-420.0,0.00035616,5]
[361803094,1747816258553,-1010.72,0.00035616,5]
[361803095,1747816258563,-596.21,0.00035616,5]
[361803096,1747816258572,-420.0,0.00035616,5]
[361803097,1747816258582,-420.0,0.00035616,5]
[361803098,1747816258591,-420.0,0.00035616,5]
[361803099,1747816258602,-420.0,0.00035616,5]
[361803100,1747816258612,-807.15,0.00035616,5]
[361803101,1747816258622,-888.53,0.00035616,5]
[361803102,1747816258632,-420.0,0.00035616,5]
[361803103,1747816258643,-684.45,0.00035616,5]
[361803104,1747816258654,-984.04,0.00035616,5]
[361803105,1747816258664,-420.0,0.00035616,5]
[361803106,1747816258674,-420.0,0.00035616,5]
[361803107,1747816258685,-780.35,0.00035616,5]
[361803108,1747816258697,-487.22,0.00035616,5]
[361803109,1747816258706,-420.0,0.00035616,5]
[361803110,1747816258716,-1417.52,0.00035616,5]
[361803111,1747816258726,-420.0,0.00035616,5]
[361803112,1747816258737,-532.53,0.00035616,5]
[361803113,1747816258746,-420.0,0.00035616,5]
[361803114,1747816258756,-420.0,0.00035616,5]
[361803115,1747816258765,-420.0,0.00035616,5]
[361803116,1747816258775,-329.80847428,0.00035616,5]
[361803117,1747816258796,-212.88152572,0.00035616,5]
[361803118,1747816258806,-1553.59,0.00035616,5]
[361803119,1747816258816,-420.0,0.00035616,5]
[361803120,1747816258827,-420.0,0.00035616,5]
[361803121,1747816258839,-575.41,0.00035616,5]
[361803122,1747816258849,-420.0,0.00035616,5]
[361803123,1747816258859,-420.0,0.00035616,5]
[361803124,1747816258872,-420.0,0.00035616,5]
[361803125,1747816258883,-1092.78,0.00035616,5]
[361803126,1747816258894,-420.0,0.00035616,5]
[361803127,1747816258905,-505.13,0.00035616,5]
[361803128,1747816258915,-420.0,0.00035616,5]
[361803129,1747816258925,-420.0,0.00035616,5]
[361803130,1747816258935,-400.0,0.00035616,5]
[361803131,1747816258947,-151.0,0.00035616,7]
[361803132,1747816258957,-165.18214,0.00035616,7]
[361803133,1747816258967,-420.0,0.00035616,5]
[361803134,1747816258976,-683.75,0.00035616,5]
[361803135,1747816258985,-420.0,0.00035616,5]
[361803136,1747816258995,-420.0,0.00035616,5]
[361803137,1747816259005,-480.12,0.00035616,5]
[361803138,1747816259014,-420.0,0.00035616,5]
[361803139,1747816259024,-420.0,0.00035616,5]
[361803140,1747816259034,-340.0,0.00035616,5]
[361803141,1747816259044,-420.0,0.00035616,5]
[361803142,1747816259053,-505.70426366,0.00035616,5]
[361803143,1747816259063,-472.90017983,0.00035616,5]
[361803144,1747816259073,-420.0,0.00035616,5]
[361803145,1747816259083,-420.0,0.00035616,5]
[361803146,1747816259092,-420.0,0.00035616,5]
[361803147,1747816259102,-420.0,0.00035616,5]
[361803148,1747816259111,-453.54,0.00035616,5]
[361803149,1747816259121,-420.0,0.00035616,5]
[361803150,1747816259130,-420.0,0.00035616,5]
[361803151,1747816259140,-420.0,0.00035616,5]
[361803152,1747816259150,-1645.32,0.00035616,5]
[361803153,1747816259159,-420.0,0.00035616,5]
[361803154,1747816259169,-3759.06,0.00035616,5]
[361803155,1747816259178,-534.87352288,0.00035616,5]
[361803156,1747816259187,-420.0,0.00035616,5]
[361803157,1747816259197,-439.69,0.00035616,5]
[361803158,1747816259206,-420.0,0.00035616,5]
[361803159,1747816259216,-423.08396738,0.00035616,5]
[361803160,1747816259225,-518.87,0.00035616,5]
[361803161,1747816259235,-768.07,0.00035616,5]
[361803162,1747816259244,-500.61,0.00035616,5]
[361803163,1747816259254,-420.0,0.00035616,5]
[361803164,1747816259263,-420.0,0.00035616,5]
[361803165,1747816259273,-724.9,0.00035616,5]
[361803166,1747816259282,-420.0,0.00035616,5]
[361803167,1747816259291,-507.15,0.00035616,5]
[361803168,1747816259302,-420.0,0.00035616,5]
[361803169,1747816259311,-420.0,0.00035616,5]
[361803170,1747816259322,-738.28,0.00035616,5]
[361803171,1747816259331,-713.19,0.00035616,5]
[361803172,1747816259340,-623.42,0.00035616,5]
[361803173,1747816259350,-420.0,0.00035616,5]
[361803174,1747816259360,-420.0,0.00035616,5]
[361803175,1747816259369,-1546.97,0.00035616,5]
[361803176,1747816259379,-1253.65,0.00035616,5]
[361803177,1747816259389,-692.0,0.00035616,5]
[361803178,1747816259399,-420.0,0.00035616,5]
[361803179,1747816259408,-513.41633227,0.00035616,5]
[361803180,1747816259418,-1853.64,0.00035616,5]
[361803181,1747816259427,-1058.75,0.00035616,5]
[361803182,1747816259437,-420.0,0.00035616,5]
[361803183,1747816259446,-470.58397136,0.00035616,5]
[361803184,1747816259456,-1251.05,0.00035616,5]
[361803185,1747816259466,-420.0,0.00035616,5]
[361803186,1747816259475,-675.14,0.00035616,5]
[361803187,1747816259485,-314.81070426,0.00035616,5]
[361803188,1747816259495,-774.42,0.00035616,5]
[361803189,1747816259504,-661.76,0.00035616,5]
[361803190,1747816259514,-420.0,0.00035616,5]
[361803191,1747816259524,-420.0,0.00035616,5]
[361803192,1747816259533,-894.49,0.00035616,5]
[361803193,1747816259542,-1183.14,0.00035616,5]
[361803194,1747816259552,-420.0,0.00035616,5]
[361803195,1747816259561,-420.0,0.00035616,5]
[361803196,1747816259570,-2830.49,0.00035616,5]
[361803197,1747816259580,-420.0,0.00035616,5]
[361803198,1747816259589,-780.7,0.00035616,5]
[361803199,1747816259599,-3692.98,0.00035616,5]
[361803200,1747816259608,-1100.68,0.00035616,5]
[361803201,1747816259619,-1071.49,0.00035616,5]
[361803202,1747816259628,-1547.32,0.00035616,5]
[361803203,1747816259638,-1538.23,0.00035616,5]
[361803204,1747816259647,-420.0,0.00035616,5]
[361803205,1747816259657,-1824.74,0.00035616,5]
[361803206,1747816259666,-420.0,0.00035616,5]
[361803207,1747816259676,-533.46,0.00035616,5]
[361803208,1747816259686,-420.0,0.00035616,5]
[361803209,1747816259695,-442.24,0.00035616,5]
[361803210,1747816259705,-998.47,0.00035616,5]
[361803211,1747816259715,-420.0,0.00035616,5]
[361803212,1747816259724,-2673.88,0.00035616,5]
[361803213,1747816259734,-420.0,0.00035616,5]
[361803214,1747816259743,-557.5,0.00035616,5]
[361803215,1747816259752,-420.0,0.00035616,5]
[361803216,1747816259762,-1721.35,0.00035616,5]
[361803217,1747816259771,-420.0,0.00035616,5]
[361803218,1747816259781,-2528.67,0.00035616,5]
[361803219,1747816259789,-821.01,0.00035616,5]
[361803220,1747816259799,-643.73,0.00035616,5]
[361803221,1747816259808,-1417.64,0.00035616,5]
[361803222,1747816259817,-420.0,0.00035616,5]
[361803223,1747816259827,-1177.87,0.00035616,5]
[361803224,1747816259836,-785.43,0.00035616,5]
[361803225,1747816259847,-381.28267951,0.00035616,5]
[361803226,1747816259858,-1612.84,0.00035616,5]
[361803227,1747816259871,-420.0,0.00035616,5]
[361803228,1747816259881,-1085.38,0.00035616,5]
[361803229,1747816259890,-500.0,0.00035616,5]
[361803230,1747816259900,-339.29777536,0.00035616,5]
[361803231,1747816259910,-3574.09,0.00035616,5]
[361803232,1747816259919,-420.0,0.00035616,5]
[361803233,1747816259928,-420.0,0.00035616,5]
[361803234,1747816259938,-420.0,0.00035616,5]
[361803235,1747816259948,-1765.02,0.00035616,5]
[361803236,1747816259958,-420.0,0.00035616,5]
[361803237,1747816259967,-420.0,0.00035616,5]
[361803238,1747816259977,-554.53,0.00035616,5]
[361803239,1747816259987,-2814.2,0.00035616,5]
[361803240,1747816259997,-420.0,0.00035616,5]
[361803241,1747816260007,-420.0,0.00035616,5]
[361803242,1747816260017,-3786.28,0.00035616,5]
[361803243,1747816260026,-420.0,0.00035616,5]
[361803244,1747816260037,-901.89,0.00035616,5]
[361803245,1747816260048,-561.23,0.00035616,5]
[361803246,1747816260058,-472.83,0.00035616,2]
[361803247,1747816260069,-420.0,0.00035616,5]
[361803248,1747816260080,-420.0,0.00035616,5]
[361803249,1747816260091,-2278.21,0.00035616,5]
[361803250,1747816260101,-439.23,0.00035616,5]
[361803251,1747816260111,-2784.54,0.00035616,3]
[361803252,1747816260121,-420.0,0.00035616,5]
[361803253,1747816260132,-151.0,0.00035616,7]
[361803254,1747816260141,-151.0,0.00035616,7]
[361803255,1747816260151,-160.129301,0.00035616,7]
[361803256,1747816260162,-904.96,0.00035616,5]
[361803257,1747816260172,-529.81,0.00035616,5]
[361803258,1747816260181,-420.0,0.00035616,5]
[361803259,1747816260191,-420.0,0.00035616,5]
[361803260,1747816260202,-1701.51,0.00035616,5]
[361803261,1747816260212,-420.0,0.00035616,5]
[361803262,1747816260222,-420.0,0.00035616,5]
[361803263,1747816260232,-420.0,0.00035616,5]
[361803264,1747816260242,-420.0,0.00035616,5]
[361803265,1747816260251,-2400.51,0.00035616,5]
[361803266,1747816260261,-488.07,0.00035616,5]
[361803267,1747816260271,-875.78,0.00035616,5]
[361803268,1747816260281,-1316.71,0.00035616,5]
[361803269,1747816260291,-1798.28,0.00035616,5]
[361803270,1747816260302,-420.0,0.00035616,5]
[361803271,1747816260311,-575.9,0.00035616,5]
[361803272,1747816260321,-1252.42,0.00035616,5]
[361803273,1747816260331,-420.0,0.00035616,5]
[361803274,1747816260341,-1270.9,0.00035616,5]
[361803275,1747816260351,-3247.13,0.00035616,5]
[361803276,1747816260360,-420.0,0.00035616,5]
[361803277,1747816260370,-420.0,0.00035616,5]
[361803278,1747816260380,-2346.99,0.00035616,5]
[361803279,1747816260390,-420.0,0.00035616,5]
[361803280,1747816260400,-420.0,0.00035616,5]
[361803281,1747816260409,-420.0,0.00035616,5]
[361803282,1747816260420,-505.57,0.00035616,5]
[361803283,1747816260429,-151.0,0.00035616,7]
[361803284,1747816260439,-420.0,0.00035616,5]
[361803285,1747816260448,-420.0,0.00035616,5]
[361803286,1747816260457,-420.0,0.00035616,5]
[361803287,1747816260467,-420.0,0.00035616,5]
[361803288,1747816260476,-151.0,0.00035616,7]
[361803289,1747816260486,-420.0,0.00035616,5]
[361803290,1747816260495,-194.717906,0.00035616,7]
[361803291,1747816260505,-637.95,0.00035616,5]
[361803292,1747816260515,-420.0,0.00035616,5]
[361803293,1747816260524,-1436.64,0.00035616,5]
[361803294,1747816260534,-1626.5,0.00035616,5]
[361803295,1747816260544,-420.0,0.00035616,5]
[361803296,1747816260553,-890.4,0.00035616,5]
[361803297,1747816260564,-1413.29,0.00035616,5]
[361803298,1747816260573,-420.0,0.00035616,5]
[361803299,1747816260583,-1267.89,0.00035616,5]
[361803300,1747816260593,-906.79,0.00035616,5]
[361803301,1747816260604,-420.0,0.00035616,5]
[361803302,1747816260614,-420.0,0.00035616,5]
[361803303,1747816260623,-655.54,0.00035616,5]
[361803304,1747816260635,-400.3297845,0.00035616,5]
[361803305,1747816260644,-420.0,0.00035616,5]
[361803306,1747816260654,-617.38,0.00035616,5]
[361803307,1747816260665,-420.0,0.00035616,5]
[361803308,1747816260675,-420.0,0.00035616,5]
[361803309,1747816260685,-245.996319,0.00035616,7]
[361803310,1747816260695,-374.97823264,0.00035616,5]
[361803311,1747816260705,-245.996319,0.00035616,7]
[361803312,1747816260714,-245.996319,0.00035616,7]
[361803313,1747816260724,-245.996319,0.00035616,7]
[361803314,1747816260733,-420.0,0.00035616,5]
[361803315,1747816260743,-245.996319,0.00035616,7]
[361803316,1747816260752,-482.78,0.00035616,5]
[361803317,1747816260762,-245.996319,0.00035616,7]
[361803318,1747816260772,-1419.41,0.00035616,5]
[361803319,1747816260782,-3722.17,0.00035616,5]
[361803320,1747816260792,-245.996319,0.00035616,7]
[361803321,1747816260803,-245.996319,0.00035616,7]
[361803322,1747816260812,-245.996319,0.00035616,7]
[361803323,1747816260822,-420.0,0.00035616,5]
[361803324,1747816260832,-245.996319,0.00035616,7]
[361803325,1747816260842,-245.996319,0.00035616,7]
[361803326,1747816260852,-245.996311,0.00035616,7]
[361803327,1747816260862,-640.32,0.00035616,5]
[361803328,1747816260875,-420.0,0.00035616,5]
[361803329,1747816260886,-430.89,0.00035616,5]
[361803330,1747816260895,-472.36,0.00035616,5]
[361803331,1747816260906,-684.61,0.00035616,5]
[361803332,1747816260917,-420.0,0.00035616,5]
[361803333,1747816260926,-420.0,0.00035616,5]
[361803334,1747816260936,-420.0,0.00035616,5]
[361803335,1747816260945,-665.9,0.00035616,5]
[361803336,1747816260955,-420.0,0.00035616,2]
[361803337,1747816260965,-420.0,0.00035616,5]
[361803338,1747816260974,-2012.89,0.00035616,5]
[361803339,1747816260984,-420.0,0.00035616,5]